[Event "Live Chess"]
[Site "Chess.com"]
[Date "2023.05.20"]
[Round "-"]
[White "Salpingidis"]
[Black "CheckThis4"]
[Result "0-1"]
[WhiteElo "2238"]
[BlackElo "2546"]
[TimeControl "300"]
[EndTime "14:59:42 PDT"]
[Termination "CheckThis4 won by resignation"]

1. d4 {[%clk 0:04:52.6]} 1... Nf6 {[%clk 0:04:56.1]} 2. c4 {[%clk 0:04:51.9]}
2... e5 {[%clk 0:04:55]} 3. dxe5 {[%clk 0:04:49.9]} 3... Ng4 {[%clk 0:04:54]} 4.
Nf3 {[%clk 0:04:49.3]} 4... Bc5 {[%clk 0:04:52.7]} 5. e3 {[%clk 0:04:48.8]} 5...
Nc6 {[%clk 0:04:52]} 6. Be2 {[%clk 0:04:47.8]} 6... O-O {[%clk 0:04:50.6]} 7.
O-O {[%clk 0:04:45.7]} 7... Re8 {[%clk 0:04:49.7]} 8. b3 {[%clk 0:04:40.9]} 8...
Ncxe5 {[%clk 0:04:47]} 9. Nxe5 {[%clk 0:04:38.3]} 9... Nxe5 {[%clk 0:04:46.2]}
10. Bb2 {[%clk 0:04:37.3]} 10... Bf8 {[%clk 0:04:33.1]} 11. Nc3 {[%clk
0:04:32.7]} 11... a5 {[%clk 0:04:31.6]} 12. f4 {[%clk 0:04:27.4]} 12... Nc6
{[%clk 0:04:24.1]} 13. Nd5 {[%clk 0:04:19.7]} 13... Nb4 {[%clk 0:04:21.6]} 14.
Rf3 {[%clk 0:03:53.6]} 14... Ra6 {[%clk 0:04:17.5]} 15. f5 {[%clk 0:03:45.7]}
15... Nxd5 {[%clk 0:04:11]} 16. cxd5 {[%clk 0:03:45.6]} 16... Rh6 {[%clk
0:04:08.9]} 17. f6 {[%clk 0:03:37.2]} 17... g6 {[%clk 0:04:03.9]} 18. Qd4 {[%clk
0:03:24.8]} 18... b6 {[%clk 0:04:00.7]} 19. e4 {[%clk 0:03:14.3]} 19... Bc5
{[%clk 0:03:55.6]} 0-1

[Event "Live Chess"]
[Site "Chess.com"]
[Date "2023.05.20"]
[Round "-"]
[White "raminguy"]
[Black "LiamBellwood"]
[Result "1/2-1/2"]
[WhiteElo "1953"]
[BlackElo "2074"]
[TimeControl "300"]
[EndTime "14:59:57 PDT"]
[Termination "Game drawn by repetition"]

1. d4 {[%clk 0:04:59.3]} 1... e6 {[%clk 0:04:59.9]} 2. Nc3 {[%clk 0:04:58.5]}
2... Bb4 {[%clk 0:04:58.4]} 3. Nf3 {[%clk 0:04:53.3]} 3... f5 {[%clk 0:04:56.2]}
4. Bg5 {[%clk 0:04:50.9]} 4... Nf6 {[%clk 0:04:53.7]} 5. Qd3 {[%clk 0:04:48.2]}
5... Bxc3+ {[%clk 0:04:52.7]} 6. bxc3 {[%clk 0:04:47]} 6... h6 {[%clk
0:04:51.3]} 7. Bd2 {[%clk 0:04:41.5]} 7... b6 {[%clk 0:04:48.7]} 8. e3 {[%clk
0:04:36.1]} 8... Bb7 {[%clk 0:04:47.8]} 9. Ne5 {[%clk 0:04:32.5]} 9... O-O
{[%clk 0:04:32.3]} 10. f3 {[%clk 0:04:29.7]} 10... d6 {[%clk 0:04:24.5]} 11. Ng6
{[%clk 0:04:26.3]} 11... Re8 {[%clk 0:04:23.9]} 12. Be2 {[%clk 0:04:23.1]} 12...
Ba6 {[%clk 0:04:22.8]} 13. c4 {[%clk 0:04:21.4]} 13... d5 {[%clk 0:04:22.2]} 14.
Qb3 {[%clk 0:04:19.1]} 14... Nc6 {[%clk 0:04:00.9]} 15. O-O {[%clk 0:04:14.7]}
15... Ne7 {[%clk 0:03:52.2]} 16. Ne5 {[%clk 0:04:08.5]} 16... dxc4 {[%clk
0:03:37.2]} 17. Bxc4 {[%clk 0:04:06]} 17... Bxc4 {[%clk 0:03:36.4]} 18. Qxc4
{[%clk 0:04:04.8]} 18... Ned5 {[%clk 0:03:28.4]} 19. Rfe1 {[%clk 0:03:51.3]}
19... a6 {[%clk 0:02:56.5]} 20. e4 {[%clk 0:03:49.2]} 20... b5 {[%clk 0:02:56]}
21. Qb3 {[%clk 0:03:48.2]} 21... fxe4 {[%clk 0:02:54.8]} 22. fxe4 {[%clk
0:03:46.5]} 22... Nb6 {[%clk 0:02:52.9]} 23. c3 {[%clk 0:03:31.6]} 23... Na4
{[%clk 0:02:11.1]} 24. Rac1 {[%clk 0:03:10.4]} 24... c5 {[%clk 0:02:07.9]} 25.
Be3 {[%clk 0:02:22.2]} 25... Rc8 {[%clk 0:01:57.5]} 26. Qd1 {[%clk 0:02:02.5]}
26... Nxe4 {[%clk 0:01:33.7]} 27. Qh5 {[%clk 0:01:31]} 27... Nf6 {[%clk
0:00:56.5]} 28. Qf7+ {[%clk 0:01:28]} 28... Kh7 {[%clk 0:00:55.7]} 29. Qg6+
{[%clk 0:01:26.4]} 29... Kg8 {[%clk 0:00:54.2]} 30. Qf7+ {[%clk 0:01:25.2]}
30... Kh7 {[%clk 0:00:53.7]} 31. Qg6+ {[%clk 0:01:19]} 31... Kg8 {[%clk
0:00:52.5]} 32. Qf7+ {[%clk 0:01:18.2]} 1/2-1/2

[Event "Live Chess"]
[Site "Chess.com"]
[Date "2023.05.20"]
[Round "-"]
[White "Stanbad1"]
[Black "LodeshChess"]
[Result "1-0"]
[WhiteElo "2392"]
[BlackElo "1069"]
[TimeControl "300"]
[EndTime "15:00:00 PDT"]
[Termination "Stanbad1 won by resignation"]

1. d4 {[%clk 0:04:58]} 1... Nf6 {[%clk 0:04:54.6]} 2. Nc3 {[%clk 0:04:55.6]}
2... e6 {[%clk 0:04:53.7]} 3. e4 {[%clk 0:04:54.1]} 3... Bb4 {[%clk 0:04:52.9]}
4. e5 {[%clk 0:04:52.8]} 4... Bxc3+ {[%clk 0:04:51]} 5. bxc3 {[%clk 0:04:51.3]}
5... Nd5 {[%clk 0:04:50.3]} 6. Qg4 {[%clk 0:04:50.6]} 6... g6 {[%clk 0:04:20.4]}
7. c4 {[%clk 0:04:48]} 7... Nb4 {[%clk 0:04:11]} 8. Bg5 {[%clk 0:04:46.2]} 8...
O-O {[%clk 0:03:47.1]} 9. Bxd8 {[%clk 0:04:42.9]} 9... Rxd8 {[%clk 0:03:46.8]}
10. Bd3 {[%clk 0:04:41]} 10... a6 {[%clk 0:03:40.8]} 11. a3 {[%clk 0:04:26.3]}
1-0

[Event "Live Chess"]
[Site "Chess.com"]
[Date "2023.05.20"]
[Round "-"]
[White "Conradical12"]
[Black "ViktorTheCoolBoy"]
[Result "0-1"]
[WhiteElo "1597"]
[BlackElo "2507"]
[TimeControl "300"]
[EndTime "15:00:05 PDT"]
[Termination "ViktorTheCoolBoy won by resignation"]

1. e4 {[%clk 0:04:56.5]} 1... d5 {[%clk 0:04:58.7]} 2. exd5 {[%clk 0:04:55]}
2... Qxd5 {[%clk 0:04:58.6]} 3. Nc3 {[%clk 0:04:52.1]} 3... Qd6 {[%clk
0:04:56.5]} 4. Nf3 {[%clk 0:04:50.4]} 4... Nf6 {[%clk 0:04:55.7]} 5. Bc4 {[%clk
0:04:47.7]} 5... g6 {[%clk 0:04:47.9]} 6. d3 {[%clk 0:04:47.1]} 6... Bg7 {[%clk
0:04:46.7]} 7. Be3 {[%clk 0:04:46.5]} 7... O-O {[%clk 0:04:45.5]} 8. Qd2 {[%clk
0:04:46.1]} 8... a6 {[%clk 0:04:44.8]} 9. O-O-O {[%clk 0:04:45.5]} 9... b5
{[%clk 0:04:44]} 10. Bb3 {[%clk 0:04:45]} 10... Bb7 {[%clk 0:04:43.3]} 11. Bh6
{[%clk 0:04:44]} 11... Nbd7 {[%clk 0:04:40.6]} 12. Bxg7 {[%clk 0:04:42.6]} 12...
Kxg7 {[%clk 0:04:40.5]} 13. h4 {[%clk 0:04:40.5]} 13... c5 {[%clk 0:04:35.6]}
14. a3 {[%clk 0:04:31.4]} 14... h5 {[%clk 0:04:33.8]} 15. Ne4 {[%clk 0:04:24.9]}
15... Nxe4 {[%clk 0:04:31.9]} 16. dxe4 {[%clk 0:04:22.7]} 16... Bxe4 {[%clk
0:04:28.5]} 17. Qxd6 {[%clk 0:04:20.1]} 17... exd6 {[%clk 0:04:28.4]} 18. Rxd6
{[%clk 0:04:18.4]} 18... Bxf3 {[%clk 0:04:27]} 19. gxf3 {[%clk 0:04:13.5]} 19...
Ne5 {[%clk 0:04:25]} 20. f4 {[%clk 0:04:09.4]} 20... Ng4 {[%clk 0:04:23.3]} 21.
f3 {[%clk 0:04:06.8]} 21... Nh6 {[%clk 0:04:22.4]} 22. Bd5 {[%clk 0:04:02.2]}
22... Rad8 {[%clk 0:04:20.8]} 23. Rxd8 {[%clk 0:03:57.9]} 23... Rxd8 {[%clk
0:04:20.7]} 24. Bb7 {[%clk 0:03:54.5]} 24... a5 {[%clk 0:04:19.5]} 25. Bc6
{[%clk 0:03:52.6]} 25... b4 {[%clk 0:04:18.2]} 26. axb4 {[%clk 0:03:50.7]} 26...
axb4 {[%clk 0:04:18.1]} 27. Re1 {[%clk 0:03:48.9]} 27... Nf5 {[%clk 0:04:14.6]}
28. Re5 {[%clk 0:03:47.2]} 28... c4 {[%clk 0:04:10.1]} 29. Be4 {[%clk
0:03:37.1]} 29... Nxh4 {[%clk 0:04:07.3]} 30. f5 {[%clk 0:03:31.7]} 30... gxf5
{[%clk 0:04:04.3]} 31. Bxf5 {[%clk 0:03:29.8]} 31... Nxf3 {[%clk 0:04:02.7]} 32.
Re3 {[%clk 0:03:25.4]} 32... Nd4 {[%clk 0:04:00.3]} 33. Rg3+ {[%clk 0:03:23.2]}
33... Kh6 {[%clk 0:03:56.9]} 34. Be4 {[%clk 0:03:08.5]} 34... Ne2+ {[%clk
0:03:55.1]} 0-1

[Event "Live Chess"]
[Site "Chess.com"]
[Date "2023.05.20"]
[Round "-"]
[White "WelshTiger"]
[Black "jk0110"]
[Result "1-0"]
[WhiteElo "2389"]
[BlackElo "1118"]
[TimeControl "300"]
[EndTime "15:00:08 PDT"]
[Termination "WelshTiger won by checkmate"]

1. e4 {[%clk 0:04:56.9]} 1... e5 {[%clk 0:04:57.6]} 2. Nf3 {[%clk 0:04:55.4]}
2... Nc6 {[%clk 0:04:56.1]} 3. d4 {[%clk 0:04:53.6]} 3... Nxd4 {[%clk
0:04:46.4]} 4. Nxe5 {[%clk 0:04:46.1]} 4... d6 {[%clk 0:04:29.8]} 5. Qxd4 {[%clk
0:04:44]} 5... dxe5 {[%clk 0:04:28.2]} 6. Qxe5+ {[%clk 0:04:40]} 6... Ne7 {[%clk
0:04:19.9]} 7. Bc4 {[%clk 0:04:35.6]} 7... Be6 {[%clk 0:03:49.3]} 8. Bxe6 {[%clk
0:04:29.4]} 8... fxe6 {[%clk 0:03:48.1]} 9. Qxe6 {[%clk 0:04:28.9]} 9... Qd6
{[%clk 0:03:24.6]} 10. Qxd6 {[%clk 0:04:23.8]} 10... cxd6 {[%clk 0:03:24.5]} 11.
Nc3 {[%clk 0:04:16.1]} 11... O-O-O {[%clk 0:03:11.1]} 12. Be3 {[%clk 0:04:09.8]}
12... d5 {[%clk 0:03:09.2]} 13. exd5 {[%clk 0:04:05.4]} 13... Nxd5 {[%clk
0:03:09.1]} 14. Nxd5 {[%clk 0:04:03.6]} 14... Rxd5 {[%clk 0:03:07.7]} 15. Bxa7
{[%clk 0:04:01.9]} 15... Bb4+ {[%clk 0:03:03]} 16. c3 {[%clk 0:03:58.1]} 16...
Re8+ {[%clk 0:03:01.4]} 17. Be3 {[%clk 0:03:57.2]} 17... Bc5 {[%clk 0:02:45.6]}
18. Rd1 {[%clk 0:03:54.1]} 18... Rxd1+ {[%clk 0:02:41.4]} 19. Kxd1 {[%clk
0:03:53]} 19... Bxe3 {[%clk 0:02:35.8]} 20. fxe3 {[%clk 0:03:50.4]} 20... Rxe3
{[%clk 0:02:35.3]} 21. Re1 {[%clk 0:03:49.6]} 21... Rd3+ {[%clk 0:02:26.5]} 22.
Kc2 {[%clk 0:03:48.6]} 22... Rd7 {[%clk 0:02:22.5]} 23. a4 {[%clk 0:03:47.7]}
23... Kc7 {[%clk 0:02:19.8]} 24. Re2 {[%clk 0:03:46.6]} 24... b6 {[%clk
0:02:09.9]} 25. b4 {[%clk 0:03:36.9]} 25... Kb7 {[%clk 0:02:04.1]} 26. Kb3
{[%clk 0:03:36.2]} 26... Rc7 {[%clk 0:01:58]} 27. Re6 {[%clk 0:03:29.7]} 27...
Ka7 {[%clk 0:01:37.4]} 28. g4 {[%clk 0:03:27.9]} 28... g5 {[%clk 0:01:25.1]} 29.
Rh6 {[%clk 0:03:24.4]} 29... Ka6 {[%clk 0:01:14.2]} 30. a5 {[%clk 0:03:21.8]}
30... Rb7 {[%clk 0:01:05]} 31. Rxb6+ {[%clk 0:03:14.5]} 31... Rxb6 {[%clk
0:01:03.5]} 32. axb6 {[%clk 0:03:14.4]} 32... Kxb6 {[%clk 0:01:03]} 33. c4
{[%clk 0:03:13.8]} 33... Kc6 {[%clk 0:01:01.9]} 34. Kc3 {[%clk 0:03:13.2]} 34...
Kb6 {[%clk 0:01:00.8]} 35. b5 {[%clk 0:03:13.1]} 35... Kc7 {[%clk 0:00:58.1]}
36. Kd4 {[%clk 0:03:12.6]} 36... Kd6 {[%clk 0:00:56.4]} 37. c5+ {[%clk 0:03:12]}
37... Kc7 {[%clk 0:00:55]} 38. Kd5 {[%clk 0:03:11.5]} 38... Kb7 {[%clk
0:00:54.1]} 39. Kd6 {[%clk 0:03:10.2]} 39... h5 {[%clk 0:00:47.2]} 40. gxh5
{[%clk 0:03:08.7]} 40... g4 {[%clk 0:00:46.8]} 41. h6 {[%clk 0:03:08]} 41... g3
{[%clk 0:00:46.3]} 42. hxg3 {[%clk 0:03:06.6]} 42... Ka7 {[%clk 0:00:43.7]} 43.
h7 {[%clk 0:03:06.5]} 43... Kb7 {[%clk 0:00:42.7]} 44. h8=Q {[%clk 0:03:05]}
44... Ka7 {[%clk 0:00:41.4]} 45. b6+ {[%clk 0:02:58.1]} 45... Kb7 {[%clk
0:00:36.4]} 46. Qa1 {[%clk 0:02:48.3]} 46... Kb8 {[%clk 0:00:32]} 47. c6 {[%clk
0:02:47]} 47... Kc8 {[%clk 0:00:30.2]} 48. Qh8# {[%clk 0:02:46.9]} 1-0

[Event "Live Chess"]
[Site "Chess.com"]
[Date "2023.05.20"]
[Round "-"]
[White "Long1968"]
[Black "Shepherds_Pie"]
[Result "0-1"]
[WhiteElo "1206"]
[BlackElo "1926"]
[TimeControl "300"]
[EndTime "15:00:13 PDT"]
[Termination "Shepherds_Pie won on time"]

1. e4 {[%clk 0:04:55.9]} 1... e6 {[%clk 0:04:58.6]} 2. d3 {[%clk 0:04:52.5]}
2... d5 {[%clk 0:04:57.5]} 3. Nd2 {[%clk 0:04:49.6]} 3... Nf6 {[%clk 0:04:54.8]}
4. g3 {[%clk 0:04:43.6]} 4... c5 {[%clk 0:04:53.1]} 5. Bg2 {[%clk 0:04:40.3]}
5... Nc6 {[%clk 0:04:52.2]} 6. Ngf3 {[%clk 0:04:34.4]} 6... Be7 {[%clk 0:04:51]}
7. O-O {[%clk 0:04:31.1]} 7... dxe4 {[%clk 0:04:49.9]} 8. dxe4 {[%clk
0:04:26.5]} 8... O-O {[%clk 0:04:49.8]} 9. Re1 {[%clk 0:04:18.2]} 9... e5 {[%clk
0:04:47.5]} 10. Qe2 {[%clk 0:04:11.7]} 10... Nd4 {[%clk 0:04:45.1]} 11. Nxd4
{[%clk 0:04:02.6]} 11... cxd4 {[%clk 0:04:43.9]} 12. Nf3 {[%clk 0:03:54.6]}
12... h6 {[%clk 0:04:39]} 13. Nxe5 {[%clk 0:03:47.5]} 13... Re8 {[%clk
0:04:37.3]} 14. Nf3 {[%clk 0:03:28.4]} 14... Bc5 {[%clk 0:04:34.2]} 15. Qd3
{[%clk 0:03:15.9]} 15... Bg4 {[%clk 0:04:28.2]} 16. h3 {[%clk 0:02:47]} 16...
Bd7 {[%clk 0:04:25.7]} 17. Bf4 {[%clk 0:02:25.4]} 17... Bc6 {[%clk 0:04:22.4]}
18. Ne5 {[%clk 0:02:03.8]} 18... Rc8 {[%clk 0:04:00.6]} 19. Nxc6 {[%clk
0:01:58.3]} 19... Rxc6 {[%clk 0:03:58.4]} 20. e5 {[%clk 0:01:52.2]} 20... Nd5
{[%clk 0:03:56.8]} 21. Qf3 {[%clk 0:01:18.9]} 21... Nb4 {[%clk 0:03:52]} 22.
Rec1 {[%clk 0:00:49.1]} 22... d3 {[%clk 0:03:47.7]} 23. cxd3 {[%clk 0:00:22]}
23... Nxd3 {[%clk 0:03:46.3]} 24. Rd1 {[%clk 0:00:18.1]} 24... Nxe5 {[%clk
0:03:42.9]} 25. Rxd8 {[%clk 0:00:10.7]} 25... Nxf3+ {[%clk 0:03:41.2]} 26. Bxf3
{[%clk 0:00:05.2]} 26... Rxd8 {[%clk 0:03:36.7]} 27. Bxc6 {[%clk 0:00:03.6]}
27... bxc6 {[%clk 0:03:35.5]} 0-1

[Event "Live Chess"]
[Site "Chess.com"]
[Date "2023.05.20"]
[Round "-"]
[White "McSlash1"]
[Black "JoshMcK"]
[Result "0-1"]
[WhiteElo "2012"]
[BlackElo "1563"]
[TimeControl "300"]
[EndTime "15:00:25 PDT"]
[Termination "JoshMcK won by resignation"]

1. e4 {[%clk 0:04:59.5]} 1... c6 {[%clk 0:04:58.6]} 2. d4 {[%clk 0:04:58.6]}
2... d5 {[%clk 0:04:58.5]} 3. Nc3 {[%clk 0:04:58.3]} 3... dxe4 {[%clk
0:04:53.2]} 4. Nxe4 {[%clk 0:04:58.2]} 4... Nf6 {[%clk 0:04:52.8]} 5. Nxf6+
{[%clk 0:04:57.6]} 5... exf6 {[%clk 0:04:52.7]} 6. Nf3 {[%clk 0:04:57.3]} 6...
Bd6 {[%clk 0:04:52.3]} 7. Bd3 {[%clk 0:04:57]} 7... O-O {[%clk 0:04:51.7]} 8.
O-O {[%clk 0:04:56.9]} 8... Nd7 {[%clk 0:04:48.1]} 9. h3 {[%clk 0:04:56.5]} 9...
Re8 {[%clk 0:04:43.8]} 10. Re1 {[%clk 0:04:56.4]} 10... Nf8 {[%clk 0:04:41.3]}
11. c4 {[%clk 0:04:54.2]} 11... Ne6 {[%clk 0:04:33.2]} 12. d5 {[%clk 0:04:51.6]}
12... cxd5 {[%clk 0:04:30.4]} 13. cxd5 {[%clk 0:04:51.5]} 13... Nc5 {[%clk
0:04:29.4]} 14. Bc2 {[%clk 0:04:51.1]} 14... Bd7 {[%clk 0:04:26.2]} 15. b4
{[%clk 0:04:48.8]} 15... Na6 {[%clk 0:04:24.5]} 16. Qd3 {[%clk 0:04:47.6]} 16...
g6 {[%clk 0:04:16]} 17. Bh6 {[%clk 0:04:44]} 17... Nxb4 {[%clk 0:04:12.9]} 18.
Qc3 {[%clk 0:04:37.2]} 18... Nxc2 {[%clk 0:04:04.7]} 19. Qxc2 {[%clk 0:04:37.1]}
19... Bf5 {[%clk 0:03:59.8]} 20. Qb2 {[%clk 0:04:34.4]} 20... Rxe1+ {[%clk
0:03:55.2]} 21. Rxe1 {[%clk 0:04:32.6]} 21... Qb6 {[%clk 0:03:47.7]} 22. Qe2
{[%clk 0:04:18.5]} 22... Bd7 {[%clk 0:03:43.4]} 23. Kh1 {[%clk 0:04:13.5]} 23...
Bb5 {[%clk 0:03:41.3]} 24. Qd2 {[%clk 0:04:06.1]} 24... Bd7 {[%clk 0:03:38.7]}
25. Qc3 {[%clk 0:04:04.4]} 25... Bb4 {[%clk 0:03:35.7]} 26. Qe3 {[%clk
0:03:55.7]} 26... Bxe1 {[%clk 0:03:29.5]} 27. Qxe1 {[%clk 0:03:54.2]} 27... Re8
{[%clk 0:03:22.7]} 28. Qd2 {[%clk 0:03:50]} 28... Qb1+ {[%clk 0:03:09.1]} 29.
Kh2 {[%clk 0:03:48.5]} 29... Qe4 {[%clk 0:03:04.4]} 30. Qb2 {[%clk 0:03:41.1]}
30... Qe7 {[%clk 0:02:55.2]} 31. Qxb7 {[%clk 0:03:37.4]} 31... Qd6+ {[%clk
0:02:51.5]} 32. g3 {[%clk 0:03:33.9]} 32... Re2 {[%clk 0:02:37.3]} 33. Kg2
{[%clk 0:03:31.4]} 33... Re8 {[%clk 0:02:33.4]} 34. Bf4 {[%clk 0:03:20.1]} 34...
Qe7 {[%clk 0:02:26.9]} 35. d6 {[%clk 0:03:16.9]} 35... Bxh3+ {[%clk 0:02:25.6]}
0-1

[Event "Live Chess"]
[Site "Chess.com"]
[Date "2023.05.20"]
[Round "-"]
[White "GMHarry-youtube"]
[Black "LanceMaster23"]
[Result "0-1"]
[WhiteElo "2021"]
[BlackElo "1871"]
[TimeControl "300"]
[EndTime "15:00:50 PDT"]
[Termination "LanceMaster23 won by checkmate"]

1. e4 {[%clk 0:04:57.8]} 1... c5 {[%clk 0:04:58.5]} 2. Nf3 {[%clk 0:04:56.5]}
2... Nc6 {[%clk 0:04:57.9]} 3. Bb5 {[%clk 0:04:54.9]} 3... Qc7 {[%clk
0:04:57.1]} 4. O-O {[%clk 0:04:53.1]} 4... d6 {[%clk 0:04:54.9]} 5. d4 {[%clk
0:04:47]} 5... cxd4 {[%clk 0:04:54.2]} 6. Nxd4 {[%clk 0:04:46.6]} 6... a6 {[%clk
0:04:53.4]} 7. Nxc6 {[%clk 0:04:42.1]} 7... bxc6 {[%clk 0:04:52.8]} 8. Bc4
{[%clk 0:04:42]} 8... Nf6 {[%clk 0:04:50.3]} 9. f3 {[%clk 0:04:34.2]} 9... e6
{[%clk 0:04:49.4]} 10. c3 {[%clk 0:04:31.3]} 10... d5 {[%clk 0:04:47.7]} 11. Bd3
{[%clk 0:04:17.8]} 11... Be7 {[%clk 0:04:38]} 12. Nd2 {[%clk 0:04:06.6]} 12...
O-O {[%clk 0:04:35.8]} 13. Qc2 {[%clk 0:04:00.3]} 13... e5 {[%clk 0:04:24.1]}
14. c4 {[%clk 0:03:40]} 14... d4 {[%clk 0:03:52.8]} 15. a3 {[%clk 0:03:33.8]}
15... a5 {[%clk 0:03:49.5]} 16. b3 {[%clk 0:03:23.8]} 16... Be6 {[%clk
0:03:41.4]} 17. a4 {[%clk 0:03:18.6]} 17... Rab8 {[%clk 0:03:34.4]} 18. Ba3
{[%clk 0:03:14.2]} 18... Bxa3 {[%clk 0:03:30.8]} 19. Rxa3 {[%clk 0:03:14.1]}
19... Qe7 {[%clk 0:03:30]} 20. Ra2 {[%clk 0:03:04.5]} 20... Rb4 {[%clk
0:03:28.8]} 21. f4 {[%clk 0:02:58.9]} 21... Ng4 {[%clk 0:03:10.6]} 22. Rf3
{[%clk 0:02:49.4]} 22... exf4 {[%clk 0:02:55.1]} 23. Nf1 {[%clk 0:02:37]} 23...
Ne3 {[%clk 0:02:51]} 24. Qd2 {[%clk 0:02:33.6]} 24... Rxb3 {[%clk 0:02:37.6]}
25. Rxf4 {[%clk 0:02:29.7]} 25... Rfb8 {[%clk 0:02:20.6]} 26. Nxe3 {[%clk
0:02:23.3]} 26... dxe3 {[%clk 0:02:14.8]} 27. Qe2 {[%clk 0:02:16.1]} 27... Qc5
{[%clk 0:01:49]} 28. Rc2 {[%clk 0:01:52.6]} 28... Rxd3 {[%clk 0:01:39.2]} 29. h3
{[%clk 0:01:14.5]} 29... Rd2 {[%clk 0:01:33.2]} 30. Rxd2 {[%clk 0:00:56.3]}
30... exd2+ {[%clk 0:01:31.8]} 31. Kh2 {[%clk 0:00:55.9]} 31... Qd6 {[%clk
0:01:19.9]} 32. e5 {[%clk 0:00:45.1]} 32... d1=Q {[%clk 0:01:15.8]} 33. Qe3
{[%clk 0:00:40]} 33... Q6d2 {[%clk 0:01:08.3]} 34. Qe4 {[%clk 0:00:36.3]} 34...
Rb2 {[%clk 0:00:58]} 35. Qxc6 {[%clk 0:00:26.2]} 35... Qxf4# {[%clk 0:00:52.9]}
0-1

[Event "Live Chess"]
[Site "Chess.com"]
[Date "2023.05.20"]
[Round "-"]
[White "jagbama"]
[Black "1600x"]
[Result "0-1"]
[WhiteElo "1131"]
[BlackElo "1801"]
[TimeControl "300"]
[EndTime "15:00:52 PDT"]
[Termination "1600x won on time"]

1. e4 {[%clk 0:04:58.2]} 1... d5 {[%clk 0:04:53.3]} 2. exd5 {[%clk 0:04:49.5]}
2... Qxd5 {[%clk 0:04:34.8]} 3. Nc3 {[%clk 0:04:49.4]} 3... Qe6+ {[%clk
0:04:33.6]} 4. Qe2 {[%clk 0:04:43.9]} 4... Nf6 {[%clk 0:04:32.1]} 5. Nf3 {[%clk
0:04:39.4]} 5... c6 {[%clk 0:04:28.7]} 6. d4 {[%clk 0:04:27.2]} 6... Qxe2+
{[%clk 0:03:50.4]} 7. Bxe2 {[%clk 0:04:25.6]} 7... Bf5 {[%clk 0:03:48.4]} 8. Bd3
{[%clk 0:03:44.6]} 8... Bxd3 {[%clk 0:03:46]} 9. cxd3 {[%clk 0:03:43.6]} 9... e6
{[%clk 0:03:44.5]} 10. O-O {[%clk 0:03:42.2]} 10... h5 {[%clk 0:03:42.7]} 11. d5
{[%clk 0:03:34.2]} 11... cxd5 {[%clk 0:03:18]} 12. Nb5 {[%clk 0:03:27.5]} 12...
Na6 {[%clk 0:02:58.9]} 13. Bg5 {[%clk 0:03:26.8]} 13... Nd7 {[%clk 0:02:42.7]}
14. d4 {[%clk 0:03:11.6]} 14... Rc8 {[%clk 0:02:25.4]} 15. Nxa7 {[%clk
0:03:03.7]} 15... Rc2 {[%clk 0:02:20]} 16. Rab1 {[%clk 0:02:34.8]} 16... Rc4
{[%clk 0:02:13.8]} 17. b3 {[%clk 0:02:17.9]} 17... Rc3 {[%clk 0:02:01.9]} 18.
Nb5 {[%clk 0:02:04.3]} 18... Rc2 {[%clk 0:02:00.2]} 19. a3 {[%clk 0:01:48.5]}
19... Ra2 {[%clk 0:01:58.5]} 20. Rfc1 {[%clk 0:01:27.5]} 20... f6 {[%clk
0:01:52.8]} 21. Bf4 {[%clk 0:01:01.1]} 21... Kf7 {[%clk 0:01:48.9]} 22. Nd6+
{[%clk 0:00:40.7]} 22... Bxd6 {[%clk 0:01:46.3]} 23. Bxd6 {[%clk 0:00:39.4]}
23... g5 {[%clk 0:01:45]} 24. h4 {[%clk 0:00:26.1]} 24... g4 {[%clk 0:01:37.1]}
25. Ne1 {[%clk 0:00:24.2]} 25... Rd2 {[%clk 0:01:35.1]} 26. Bc5 {[%clk
0:00:14.1]} 26... Rc8 {[%clk 0:01:33.2]} 27. b4 {[%clk 0:00:08.9]} 27... b5
{[%clk 0:01:31.2]} 28. Nc2 {[%clk 0:00:05.1]} 28... Nab8 {[%clk 0:01:29.7]} 29.
Ne3 {[%clk 0:00:04.1]} 29... Ra2 {[%clk 0:01:28.5]} 30. Ra1 {[%clk 0:00:02.8]}
30... Rxa1 {[%clk 0:01:27.1]} 31. Rxa1 {[%clk 0:00:02.7]} 31... Nc6 {[%clk
0:01:25]} 32. a4 {[%clk 0:00:02.2]} 32... Ra8 {[%clk 0:01:22.7]} 33. a5 {[%clk
0:00:01.4]} 33... Nxc5 {[%clk 0:01:21.3]} 0-1